bitfinex-derivatives/quotes_BNBF0:USTF0_20250507
["timestamp","ask_amount","ask_price","bid_price","bid_amount"]
[1746587304241,0.30462897,603.73,602.16,1.07613763]
[1746587304445,0.33128488,603.71,602.16,1.72913763]
[1746587304842,0.30462897,603.7,602.16,1.72913763]
[1746587305147,0.30462897,603.69,602.16,1.72913763]
[1746587305346,0.33130135,603.68,602.16,1.72913763]
[1746587305546,0.63593032,603.68,602.16,1.72913763]
[1746587305746,0.30462897,603.67,602.16,1.72913763]
[1746587305942,0.33131232,603.66,602.16,1.72913763]
[1746587306147,0.63594129,603.66,602.16,1.72913763]
[1746587306347,0.30462897,603.65,602.16,1.72913763]
[1746587306548,0.3313233,603.64,602.16,1.72913763]
[1746587306847,0.30462897,603.63,602.16,1.72913763]
[1746587307051,0.33133428,603.62,602.16,1.72913763]
[1746587307450,0.30462897,603.61,602.16,1.72913763]
[1746587307650,0.33134526,603.6,602.16,1.72913763]
[1746587308647,0.30462897,603.59,602.16,1.72913763]
[1746587308852,0.33135624,603.58,602.16,1.72913763]
[1746587309048,0.30462897,603.57,602.16,1.72913763]
[1746587309248,0.33136722,603.56,602.16,1.72913763]
[1746587309451,0.30462897,603.55,602.16,1.72913763]
[1746587309651,0.3313782,603.54,602.16,1.72913763]
[1746587310152,0.30462897,603.53,602.16,1.72913763]
[1746587310848,0.33138918,603.52,602.16,1.72913763]
[1746587311052,0.62007206,603.52,602.16,1.72913763]
[1746587311752,0.30462897,603.51,602.16,1.72913763]
[1746587311946,0.33140016,603.5,602.16,1.72913763]
[1746587312353,0.30462897,603.49,602.16,1.72913763]
[1746587312554,0.33141114,603.48,602.16,1.72913763]
[1746587313154,0.30462897,603.47,602.16,1.72913763]
[1746587313847,0.28869007,603.46,602.16,1.72913763]
[1746587314256,0.30462897,603.45,602.16,1.72913763]
[1746587316451,0.30462897,603.47,602.16,1.72913763]
[1746587316850,0.30462897,603.46,602.16,1.72913763]
[1746587317153,0.30462897,603.45,602.16,1.72913763]
[1746587317350,0.30462897,603.44,602.16,1.72913763]
[1746587317554,0.30462897,603.43,602.16,1.72913763]
[1746587317755,0.30462897,603.45,602.16,1.72913763]
[1746587319252,0.30462897,603.47,602.16,1.72913763]
[1746587320048,0.33141114,603.48,602.16,1.72913763]
[1746587320248,0.30486428,603.46,602.16,1.72913763]
[1746587320454,0.28869007,603.46,602.16,1.72913763]
[1746587320750,0.30486428,603.45,602.16,1.72913763]
[1746587322050,0.30486428,603.47,602.16,1.72913763]
[1746587323551,0.33141114,603.48,602.16,1.72913763]
[1746587323856,0.28869725,603.46,602.16,1.72913763]
[1746587324155,0.30490397,603.45,602.16,1.72913763]
[1746587325455,0.63633159,603.45,602.16,1.72913763]
[1746587325655,0.30490397,603.44,602.16,1.72913763]
[1746587329358,0.28870085,603.43,602.16,1.72913763]
[1746587329559,0.30490397,603.42,602.16,1.72913763]
[1746587331158,0.30490397,603.44,602.16,1.72913763]
[1746587332061,0.28869606,603.43,602.16,1.72913763]
[1746587332259,0.30490397,603.42,602.16,1.72913763]
[1746587334161,0.30490397,603.44,602.16,1.72913763]
[1746587334857,0.28869606,603.43,602.16,1.72913763]
[1746587335663,0.30490397,603.42,602.16,1.72913763]
[1746587337765,0.28869606,603.43,602.16,1.72913763]
[1746587338064,0.30490553,603.42,602.16,1.72913763]
[1746587339666,0.33144959,603.41,602.16,1.72913763]
[1746587340166,0.30490553,603.4,602.16,1.72913763]
[1746587340366,0.59363392,603.4,602.16,1.72913763]
[1746587340866,0.30490553,603.39,602.16,1.72913763]
[1746587342368,0.30490553,603.38,602.16,1.72913763]
[1746587342969,0.30490553,603.37,602.16,1.72913763]
[1746587343271,0.30490553,603.36,602.16,1.72913763]
[1746587343569,0.30490553,603.36,602.16,1.397]
[1746587343767,0.30490553,603.35,602.16,1.397]
[1746587344069,0.30490553,603.34,602.16,1.397]
[1746587344370,0.30490553,603.39,602.16,1.397]
[1746587346466,0.30490553,603.4,602.16,1.397]
[1746587346871,0.28879668,603.38,602.16,1.397]
[1746587347073,0.30490553,603.37,602.16,1.397]
[1746587348574,0.30490553,603.36,602.16,1.397]
[1746587348869,0.30490553,603.35,602.16,1.397]
[1746587349275,0.30490553,603.34,602.16,1.397]
[1746587349577,0.30490553,603.33,602.16,1.397]
[1746587349777,0.59373577,603.33,602.16,1.397]
[1746587350074,0.30490553,603.32,602.16,1.397]
[1746587350379,0.30490553,603.31,602.16,1.397]
[1746587350678,0.30490553,603.3,602.16,1.397]
[1746587351074,0.30490553,603.29,602.16,1.397]
[1746587351275,0.30490553,603.28,602.16,1.397]
[1746587351677,0.30490553,603.27,602.16,1.397]
[1746587352180,0.30490553,603.26,602.16,1.397]
[1746587352377,0.30490553,603.25,602.16,1.397]
[1746587352578,0.30490553,603.24,602.16,1.397]
[1746587352881,0.59375015,603.24,602.16,1.397]
[1746587353076,0.30490553,603.23,602.16,1.397]
[1746587353481,0.30490553,603.22,602.16,1.397]
[1746587353781,0.30490553,603.21,602.16,1.397]
[1746587354080,0.30490553,603.2,602.16,1.397]
[1746587354482,0.30490553,603.19,602.16,1.397]
[1746587354782,0.30490553,603.18,602.16,1.397]
[1746587355282,0.30490553,603.17,602.16,1.397]
[1746587355577,0.30490553,603.16,602.16,1.397]
[1746587355984,0.30490553,603.15,602.16,1.397]
[1746587356586,0.30490553,603.14,602.16,1.397]
[1746587356984,0.30490553,603.13,602.16,1.397]
[1746587357185,0.28884462,603.24,602.16,1.397]
[1746587357480,0.30520633,603.23,602.16,1.397]
[1746587357881,0.30520633,603.22,602.16,1.397]
[1746587358286,0.30520633,603.21,602.16,1.397]
[1746587358887,0.30520633,603.2,602.16,1.397]
[1746587359086,0.59405335,603.2,602.16,1.397]
[1746587359382,0.30520633,603.19,602.16,1.397]
[1746587359882,0.30520633,603.18,602.16,1.397]
[1746587360087,0.30520633,603.19,602.16,1.397]
[1746587360389,0.30520633,603.18,602.16,1.397]
[1746587360582,0.30520633,603.17,602.16,1.397]
[1746587360888,0.30520633,603.16,602.16,1.397]
[1746587361087,0.30520633,603.19,602.16,1.397]
[1746587361287,0.30520633,603.18,602.16,1.397]
[1746587361488,0.30520633,603.17,602.16,1.397]
[1746587361787,0.30520633,603.16,602.16,1.397]
[1746587361987,0.30520633,603.17,602.16,1.397]
[1746587362288,0.30520633,603.16,602.16,1.397]
[1746587362588,0.30520633,603.17,602.16,1.397]
[1746587363289,0.30520633,603.16,602.16,1.397]
[1746587363487,0.30520633,603.15,602.16,1.397]
[1746587363786,0.30520633,603.17,602.16,1.397]
[1746587363980,0.30520633,603.14,602.16,1.397]
[1746587364182,0.30520633,603.17,602.16,1.397]
[1746587366288,0.28885901,603.18,602.16,1.397]
[1746587366583,0.33158697,603.16,602.16,1.397]
[1746587366787,0.3052017,603.15,602.16,1.397]
[1746587366989,0.33160346,603.13,602.16,1.397]
[1746587367182,0.3052017,603.12,602.16,1.397]
[1746587367789,0.33161996,603.1,602.16,1.397]
[1746587368091,0.3052017,603.09,602.16,1.397]
[1746587368289,0.33163646,603.07,602.16,1.397]
[1746587368989,0.3052017,603.06,602.16,1.397]
[1746587369194,0.33164745,603.05,602.16,1.397]
[1746587369699,0.3052017,603.04,602.16,1.397]
[1746587372292,0.33165845,603.03,602.16,1.397]
[1746587372591,0.3052017,603.02,602.16,1.397]
[1746587373693,0.28888538,603.01,602.16,1.397]
[1746587374095,0.3052017,603.0,602.16,1.397]
[1746587376191,0.3052017,603.02,602.16,1.397]
[1746587376490,0.2888686,602.99,602.16,1.397]
[1746587376894,0.3052017,602.98,602.16,1.397]
[1746587378396,0.2888686,602.99,602.16,1.397]
[1746587378796,0.30510868,602.98,602.16,1.397]
[1746587379297,0.30510868,603.02,602.16,1.397]
[1746587379797,0.28884942,602.97,602.16,1.397]
[1746587380094,0.30510868,602.96,602.16,1.397]
[1746587382298,0.30510868,603.02,602.16,1.397]
[1746587383199,0.28883983,603.01,602.16,1.397]
[1746587383498,0.30510868,603.0,602.16,1.397]
[1746587384400,0.28883983,603.01,602.16,1.397]
[1746587384802,0.30506274,603.0,602.16,1.397]
[1746587385402,0.30506274,603.02,602.16,1.397]
[1746587386395,0.28882544,603.01,602.16,1.397]
[1746587387906,0.30507876,603.0,602.16,1.397]
[1746587391308,0.30507876,603.02,602.16,1.397]
[1746587392108,0.28884702,602.99,602.16,1.397]
[1746587392704,0.30507876,602.98,602.16,1.397]
[1746587394409,0.30507876,603.02,602.16,1.397]
[1746587395008,0.2888614,603.01,602.16,1.397]
[1746587395311,0.30507876,603.0,602.16,1.397]
[1746587397308,0.69225746,604.03,602.16,1.397]
[1746587397309,0.33168045,602.99,602.16,1.397]
[1746587397503,0.30507876,602.98,602.16,1.397]
[1746587401208,0.2888638,602.97,602.16,1.397]
[1746587401808,0.30507876,602.96,602.16,1.397]
[1746587402909,0.2888638,602.97,602.16,1.397]
[1746587403104,0.30514087,602.96,602.16,1.397]
[1746587403610,0.28885661,602.95,602.16,1.397]
[1746587403909,0.30514087,602.94,602.16,1.397]
[1746587415213,0.30514087,602.98,602.16,1.397]
[1746587415714,0.28883743,602.97,602.16,1.397]
[1746587416012,0.30514087,602.96,602.16,1.397]
[1746587416317,0.28883743,602.97,602.16,1.397]
[1746587416518,0.30509151,602.96,602.16,1.397]
[1746587418019,0.33168045,602.99,602.16,1.397]
[1746587418815,0.28874157,602.98,602.16,1.397]
[1746587421024,0.33168045,602.99,602.16,1.397]
[1746587421822,0.28870683,602.98,602.16,1.397]
[1746587424025,1.26111346,604.0,602.16,1.397]
[1746587424224,0.33113679,603.98,602.16,1.397]
[1746587424624,1.26111346,603.88,602.16,1.397]
[1746587424919,0.30499399,603.87,602.16,1.397]
[1746587425423,0.30499399,603.86,602.16,1.397]
[1746587425619,0.33121356,603.84,602.16,1.397]
[1746587426023,0.30499399,603.83,602.16,1.397]
[1746587426223,0.33123002,603.81,602.16,1.397]
[1746587426724,0.30499399,603.8,602.16,1.397]
[1746587427024,0.30499399,603.79,602.16,1.397]
[1746587427420,0.30499399,603.78,602.16,1.397]
[1746587427725,0.30499399,603.77,602.16,1.397]
[1746587428126,0.33123002,603.81,602.16,1.397]
[1746587428127,0.30499399,603.76,602.16,1.397]
[1746587428324,0.30499399,603.75,602.16,1.397]
[1746587428727,1.26111346,603.78,602.16,1.397]
[1746587428728,0.30499399,603.74,602.16,1.397]
[1746587429024,0.30499399,603.73,602.16,1.397]
[1746587429232,0.30499399,603.72,602.16,1.397]
[1746587429730,0.33129037,603.7,602.16,1.397]
[1746587430432,0.30497065,603.69,602.16,1.397]
[1746587430830,0.30497065,603.68,602.16,1.397]
[1746587431026,0.30497065,603.67,602.16,1.397]
[1746587431329,0.30497065,603.66,602.16,1.397]
[1746587431631,0.28869246,603.69,602.16,1.397]
[1746587431930,0.30497177,603.68,602.16,1.397]
[1746587432330,0.30497177,603.67,602.16,1.397]
[1746587432626,0.30497177,603.66,602.16,1.397]
[1746587432927,0.30497177,603.68,602.16,1.397]
[1746587433331,0.30497177,603.67,602.16,1.397]
[1746587433632,0.30497177,603.66,602.16,1.397]
[1746587433830,0.33131781,603.65,602.16,1.397]
[1746587434331,0.30497177,603.64,602.16,1.397]
[1746587434532,0.33133428,603.62,602.16,1.397]
[1746587434929,0.30497177,603.61,602.16,1.397]
[1746587435229,0.33135075,603.59,602.16,1.397]
[1746587435532,0.30497177,603.58,602.16,1.397]
[1746587435831,0.33136722,603.56,602.16,1.397]
[1746587436430,0.30497177,603.55,602.16,1.397]
[1746587436730,0.30497177,603.54,602.16,1.397]
[1746587436926,0.33138369,603.53,602.16,1.397]
[1746587437228,0.63635546,603.53,602.16,1.397]
[1746587437631,0.30497177,603.52,602.16,1.397]
[1746587437831,0.33140016,603.5,602.16,1.397]
[1746587438230,0.30497177,603.49,602.16,1.397]
[1746587438431,0.33141664,603.47,602.16,1.397]
[1746587438632,0.30497177,603.46,602.16,1.397]
[1746587438928,0.33142762,603.45,602.16,1.397]
[1746587439132,0.30497177,603.44,602.16,1.397]
[1746587439729,0.28874157,603.43,602.16,1.397]
[1746587440033,0.3314441,603.42,602.16,1.397]
[1746587440233,0.63641587,603.42,602.16,1.397]
[1746587440629,0.30497177,603.41,602.16,1.397]
[1746587440834,0.33145508,603.4,602.16,1.397]
[1746587441433,0.30497177,603.39,602.16,1.397]
[1746587441633,0.33146607,603.38,602.16,1.397]
[1746587441935,0.30497177,603.37,602.16,1.397]
[1746587442336,0.33147706,603.36,602.16,1.397]
[1746587442636,0.30497177,603.35,602.16,1.397]
[1746587442831,0.33148804,603.34,602.16,1.397]
[1746587443236,0.30497177,603.33,602.16,1.397]
[1746587443433,0.33149903,603.32,602.16,1.397]
[1746587444137,0.30500205,603.31,602.16,1.397]
[1746587444438,0.33151002,603.3,602.16,1.397]
[1746587445039,0.30500205,603.29,602.16,1.397]
[1746587445239,0.33152101,603.28,602.16,1.397]
[1746587445539,0.30500205,603.27,602.16,1.397]
[1746587445841,0.59376279,603.27,602.16,1.397]
[1746587446340,0.30500205,603.26,602.16,1.397]
[1746587448241,0.30500205,603.27,602.16,1.397]
[1746587448841,0.28876193,603.26,602.16,1.397]
[1746587449135,0.30500205,603.25,602.16,1.397]
[1746587451543,0.30500205,603.27,602.16,1.397]
[1746587451740,0.28876193,603.24,602.16,1.397]
[1746587452143,0.30500205,603.23,602.16,1.397]
[1746587454343,0.30500205,603.27,602.16,1.397]
[1746587455344,0.28876193,603.26,602.16,1.397]
[1746587455744,0.30500205,603.25,602.16,1.397]
[1746587456546,0.28876193,603.26,602.16,1.397]
[1746587456943,0.30500535,603.25,602.16,1.397]
[1746587460547,0.30500535,603.27,602.16,1.397]
[1746587463450,0.28876193,603.26,602.16,1.397]
[1746587463852,0.30500535,603.25,602.16,1.397]
[1746587466353,0.30500535,603.27,602.16,1.397]
[1746587467554,0.28876193,603.26,602.16,1.397]
[1746587468256,0.30500535,603.25,602.16,1.397]
[1746587469456,0.331543,603.24,602.16,1.397]
[1746587469656,0.30500535,603.23,602.16,1.397]
[1746587469857,0.33155949,603.21,602.16,1.397]
[1746587470258,0.30500535,603.2,602.16,1.397]
[1746587470458,0.33157598,603.18,602.16,1.397]
[1746587471059,0.30500535,603.17,602.16,1.397]
[1746587471256,0.33158697,603.16,602.16,1.397]
[1746587471562,0.30500535,603.15,602.16,1.397]
[1746587471861,0.33159797,603.14,602.16,1.397]
[1746587472361,0.30500535,603.13,602.16,1.397]
[1746587472561,0.33160896,603.12,602.16,1.397]
[1746587472863,0.30500535,603.11,602.16,1.397]
[1746587473263,0.33161996,603.1,602.16,1.397]
[1746587473464,0.30500535,603.09,602.16,1.397]
[1746587473764,0.33163096,603.08,602.16,1.397]
[1746587474163,0.30500535,603.07,602.16,1.397]
[1746587474465,0.33164195,603.06,602.16,1.397]
[1746587474864,0.30500535,603.05,602.16,1.397]
[1746587475066,0.33165295,603.04,602.16,1.397]
[1746587475558,0.30500535,603.03,602.16,1.397]
[1746587475762,0.33166395,603.02,602.16,1.397]
[1746587476261,0.30500535,603.01,602.16,1.397]
[1746587476662,0.33167495,603.0,602.16,1.397]
[1746587477166,0.30500535,602.99,602.16,1.397]
[1746587477366,0.33168595,602.98,602.16,1.397]
[1746587477862,0.30500535,602.97,602.16,1.397]
[1746587478061,0.33169696,602.96,602.16,1.397]
[1746587478667,0.30500535,602.95,602.16,1.397]
[1746587478866,0.33170796,602.94,602.16,1.397]
[1746587479268,0.30500535,602.93,602.16,1.397]
[1746587482071,0.28888418,602.92,602.16,1.397]
[1746587482564,0.30500535,602.91,602.16,1.397]
[1746587484464,0.30500535,602.93,602.16,1.397]
[1746587485666,0.28888418,602.92,602.16,1.397]
[1746587486066,0.30500535,602.91,602.16,1.397]
[1746587487073,0.30500535,602.9,602.16,1.397]
[1746587487368,0.30500535,602.89,602.16,1.397]
[1746587487767,0.30500535,602.88,602.16,1.397]
[1746587488070,0.30500535,602.93,602.16,1.397]
[1746587488773,0.28888418,602.92,602.16,1.397]
[1746587489474,0.30500535,602.91,602.16,1.397]
[1746587493674,0.30500535,602.93,602.16,1.397]
[1746587493970,0.28888418,602.9,602.16,1.397]
[1746587494370,0.30500535,602.89,602.16,1.397]
[1746587496573,0.33170796,602.94,602.16,1.397]
[1746587496574,0.30500535,602.93,602.16,1.397]
[1746587496777,0.28888418,602.88,602.16,1.397]
[1746587497077,0.30500535,602.87,602.16,1.397]
[1746587498478,0.28888418,602.88,602.16,1.397]
[1746587498680,0.305182,602.87,602.16,1.397]
[1746587499380,0.305182,602.93,602.16,1.397]
[1746587499681,0.28888418,602.86,602.16,1.397]
[1746587500079,0.305182,602.85,602.16,1.397]
[1746587502378,0.305182,602.93,602.16,1.397]
[1746587502586,0.28889378,602.84,602.16,1.397]
[1746587502984,0.305182,602.83,602.16,1.397]
[1746587505384,0.305182,602.91,602.16,1.397]
[1746587506290,0.28889618,602.9,602.16,1.397]
[1746587506691,0.305182,602.89,602.16,1.397]
[1746587507790,0.33174097,602.88,602.16,1.397]
[1746587507995,0.305182,602.87,602.16,1.397]
[1746587508197,0.33175198,602.86,602.16,1.397]
[1746587508694,0.305182,602.85,602.16,1.397]
[1746587512196,0.28892496,602.84,602.16,1.397]
[1746587512798,0.305182,602.83,602.16,1.397]
[1746587514198,0.33175198,602.86,602.16,1.397]
[1746587514395,0.28892736,602.82,602.16,1.397]
[1746587514892,0.30524323,602.81,602.16,1.397]
[1746587517399,0.30524323,602.85,602.16,1.397]
[1746587517699,0.28892496,602.8,602.16,1.397]
[1746587518100,0.30524323,602.79,602.16,1.397]
[1746587520402,0.30524323,602.85,602.16,1.397]
[1746587520605,0.28892496,602.78,602.16,1.397]
[1746587521101,0.30524323,602.77,602.16,1.397]
[1746587523598,0.28892496,602.78,602.16,1.397]
[1746587525805,0.30520719,602.77,602.16,1.397]
[1746587526403,0.30520719,602.83,602.16,1.397]
[1746587526605,0.28890817,602.76,602.16,1.397]
[1746587527105,0.30520719,602.75,602.16,1.397]
[1746587529503,0.30520719,602.83,602.16,1.397]
[1746587529701,0.28890817,602.74,602.16,1.397]
[1746587532110,0.33176298,602.84,602.16,1.397]
[1746587532311,0.30519769,602.83,602.16,1.397]
[1746587532912,0.28890817,602.82,602.16,1.397]
[1746587533206,0.30519769,602.81,602.16,1.397]
[1746587534812,0.28890817,602.82,602.16,1.397]
[1746587535007,0.30519811,602.81,602.16,1.397]
[1746587535512,0.30519811,602.83,602.16,1.397]
[1746587536712,0.28890817,602.82,602.16,1.397]
[1746587537011,0.30519811,602.81,602.16,1.397]
[1746587538312,0.30519811,602.83,602.16,1.397]
[1746587538612,0.33176298,602.84,602.16,1.397]
[1746587538813,0.30520811,602.83,602.16,1.397]
[1746587539114,0.59405153,602.83,602.16,1.397]
[1746587539413,0.30520811,602.82,602.16,1.397]
[1746587540414,0.28884342,602.83,602.16,1.397]
[1746587541314,0.33176298,602.84,602.16,1.397]
[1746587542015,0.28885301,602.83,602.16,1.397]
[1746587544118,0.33176298,602.84,602.16,1.397]
[1746587544917,0.28885421,602.83,602.16,1.397]
[1746587547119,0.33176298,602.84,602.16,1.397]
[1746587547618,0.30520719,602.82,602.16,1.397]
[1746587548020,0.30520719,602.83,602.16,1.397]
[1746587548217,0.30520719,602.81,602.16,1.397]
[1746587548518,0.59411536,602.81,602.16,1.397]
[1746587548718,0.28890817,602.81,602.16,1.397]
[1746587548920,0.30520719,602.8,602.16,1.397]
[1746587550117,0.33176298,602.84,602.16,1.397]
[1746587550521,0.30520805,602.83,602.16,1.397]
[1746587551221,0.28892736,602.82,602.16,1.397]
[1746587552219,0.33177949,602.81,602.16,1.397]
[1746587552921,0.30520805,602.8,602.16,1.397]
[1746587553916,0.33177949,602.81,602.16,1.397]
[1746587554720,0.30524835,602.8,602.16,1.397]
[1746587557526,0.28893096,602.79,602.16,1.397]
[1746587557922,0.30524835,602.78,602.16,1.397]
[1746587558725,0.28893096,602.79,602.16,1.397]
[1746587559127,0.30523473,602.78,602.16,1.397]
[1746587559726,0.30523473,602.8,602.16,1.397]
[1746587560728,0.28893096,602.79,602.16,1.397]
[1746587561328,0.30523473,602.78,602.16,1.397]
[1746587562431,0.30523473,602.8,602.16,1.397]
[1746587563030,0.28893335,602.77,602.16,1.397]
[1746587563326,0.30523473,602.76,602.16,1.397]
[1746587564530,0.28893335,602.77,602.16,1.397]
[1746587564930,0.30523915,602.76,602.16,1.397]
[1746587565531,0.30523915,602.8,602.16,1.397]
[1746587566030,0.28893096,602.79,602.16,1.397]
[1746587566431,0.30523915,602.78,602.16,1.397]
[1746587567427,0.28893096,602.79,602.16,1.397]
[1746587567626,0.30523511,602.78,602.16,1.397]
[1746587568628,0.30523511,602.8,602.16,1.397]
[1746587568934,0.28893096,602.77,602.16,1.397]
[1746587569228,0.30523511,602.76,602.16,1.397]
[1746587572035,0.28893096,602.75,602.16,1.397]
[1746587572736,0.30523511,602.74,602.16,1.397]
[1746587573837,0.28893096,602.75,602.16,1.397]
[1746587574036,0.33177949,602.81,602.16,1.397]
[1746587574536,0.28885421,602.8,602.16,1.397]
[1746587577141,0.30517198,602.79,602.16,1.397]
[1746587579336,0.28885421,602.8,602.16,1.397]
[1746587579540,0.30517789,602.79,602.16,1.397]
[1746587580641,0.30517789,602.8,602.16,1.397]
[1746587580837,0.28890217,602.78,602.16,1.397]
[1746587581040,0.30517789,602.77,602.16,1.397]
[1746587587049,0.28890577,602.76,602.16,1.397]
[1746587587551,0.30517789,602.75,602.16,1.397]
[1746587589444,0.30517789,602.8,602.16,1.397]
[1746587589949,0.28890217,602.79,602.16,1.397]
[1746587590449,0.30517789,602.78,602.16,1.397]
[1746587592650,0.30517789,602.8,602.16,1.397]
[1746587593050,0.28892136,602.79,602.16,1.397]
[1746587593546,0.30517789,602.78,602.16,1.397]
[1746587595451,0.30517789,602.8,602.16,1.397]
[1746587595950,0.28893935,602.79,602.16,1.397]
[1746587596347,0.30517789,602.78,602.16,1.397]
[1746587598751,0.30517789,602.8,602.16,1.397]
[1746587599052,0.28894415,602.77,602.16,1.397]
[1746587599354,0.30517789,602.76,602.16,1.397]
[1746587601348,0.30517789,602.8,602.16,1.397]
[1746587601651,0.28895015,602.75,602.16,1.397]
[1746587602052,0.30517789,602.74,602.16,1.397]
[1746587602352,0.33182353,602.73,602.16,1.397]
[1746587602848,0.30517789,602.72,602.16,1.397]
[1746587605154,0.28895974,602.71,602.16,1.397]
[1746587605452,0.30517789,602.7,600.61,1.05670849]
[1746587605646,0.30517789,602.7,600.71,0.33293935]
[1746587607353,0.30517789,602.72,600.71,0.33293935]
[1746587607551,0.30517789,602.72,600.72,0.28914702]
[1746587607850,0.30517789,602.71,600.74,0.33292272]
[1746587608352,0.30517789,602.7,600.74,0.33292272]
[1746587608652,0.30517789,602.72,600.75,0.69]
[1746587608951,0.2891326,602.7,600.75,0.69]
[1746587609153,0.2891326,602.7,600.77,0.3329061]
[1746587609448,0.30517789,602.69,600.77,0.3329061]
[1746587612156,0.2891326,602.7,600.77,0.3329061]
[1746587612757,0.30527948,602.69,600.77,0.3329061]
[1746587613455,0.30527948,602.72,600.77,0.3329061]
[1746587614054,0.2891278,602.71,600.77,0.3329061]
[1746587614255,0.30527948,602.7,600.77,0.3329061]
[1746587619765,0.30527948,602.72,600.77,0.3329061]
[1746587620468,0.2891278,602.71,600.77,0.3329061]
[1746587620871,0.30527948,602.7,600.77,0.3329061]
[1746587622370,0.30527948,602.72,600.77,0.3329061]
[1746587622878,0.2891278,602.71,600.77,0.3329061]
[1746587623276,0.30527948,602.7,600.77,0.3329061]
[1746587623574,0.63711953,602.7,600.77,0.3329061]
[1746587624179,0.30527948,602.69,600.77,0.3329061]
[1746587625978,0.28913861,602.68,600.77,0.3329061]
[1746587626480,0.30527948,602.67,600.77,0.3329061]
[1746587628082,0.33186207,602.66,600.77,0.3329061]
[1746587628681,0.30530782,602.65,600.77,0.3329061]
[1746587628883,0.6371754,602.65,600.77,0.3329061]
[1746587629378,0.30530782,602.64,600.77,0.3329061]
[1746587631782,0.28915903,602.63,600.77,0.3329061]
[1746587632284,0.30530782,602.62,600.77,0.3329061]
[1746587634585,0.28915903,602.61,600.77,0.3329061]
[1746587634886,0.30530782,602.6,600.77,0.3329061]
[1746587637387,0.33186758,602.65,600.77,0.3329061]
[1746587637686,0.30532472,602.64,600.77,0.3329061]
[1746587637886,0.92630399,602.64,600.77,0.3329061]
[1746587638182,0.30532472,602.63,600.77,0.3329061]
[1746587640689,0.28924195,602.62,600.77,0.3329061]
[1746587641088,0.30532472,602.61,600.77,0.3329061]
[1746587642492,0.30532472,602.61,600.77,0.8869061]
[1746587642791,0.30532472,602.61,600.77,1.4689061]
[1746587643590,0.33187309,602.64,600.77,1.4689061]
[1746587643891,0.3053355,602.63,600.77,1.4689061]
[1746587644085,0.28915903,602.6,600.77,1.4689061]
[1746587644490,0.3053355,602.59,600.77,1.4689061]
[1746587648694,0.28915903,602.6,600.77,1.4689061]
[1746587648994,0.30533519,602.59,600.77,1.4689061]
[1746587649490,0.30533519,602.63,600.77,1.4689061]
[1746587649892,0.28915903,602.62,600.77,1.4689061]
[1746587650297,0.30533519,602.61,600.77,1.4689061]
[1746587652697,0.28915903,602.6,600.77,1.4689061]
[1746587655098,0.33187309,602.64,600.77,1.4689061]
[1746587655499,0.30530001,602.63,600.77,1.4689061]
[1746587655900,0.59431375,602.63,600.77,1.4689061]
[1746587656100,0.28901374,602.63,600.77,1.4689061]
[1746587658995,0.30527076,602.62,600.77,1.4689061]
[1746587661801,0.30527076,602.63,600.77,1.4689061]
[1746587662002,0.2891302,602.61,600.77,1.4689061]
[1746587662301,0.30527076,602.6,600.77,1.4689061]
[1746587664604,0.30527076,602.63,600.77,1.4689061]
[1746587665606,0.2891302,602.62,600.77,1.4689061]
[1746587666101,0.30527076,602.61,600.77,1.4689061]
[1746587667504,0.30527076,602.63,600.77,1.4689061]
[1746587669007,0.2891302,602.62,600.77,1.4689061]
[1746587669210,0.30527076,602.61,600.77,1.4689061]
[1746587672813,0.2891302,602.62,600.77,1.4689061]
[1746587673113,0.30526932,602.61,600.77,1.4689061]
[1746587673512,0.33187309,602.64,600.77,1.4689061]
[1746587673513,0.30526932,602.63,600.77,1.4689061]
[1746587674314,0.2891302,602.62,600.77,1.4689061]
[1746587674510,0.30526932,602.61,600.77,1.4689061]
[1746587676713,0.30526932,602.63,600.77,1.4689061]